fUST/lending_fUST_20260628
["ID","MTS","AMOUNT","RATE_DAILY","PERIOD"]
[426599647,1782659439000,-781.08695527,0.00016798,2]
[426599649,1782659439000,-781.08695527,0.00016798,2]
[426599659,1782659439000,-781.08695527,0.00016798,2]
[426599657,1782659439000,-781.08695527,0.00016798,2]
[426599651,1782659439000,-781.08695527,0.00016798,2]
[426599661,1782659439000,-781.08695527,0.00016798,2]
[426599655,1782659439000,-781.08695527,0.00016798,2]
[426599653,1782659439000,-781.08695527,0.00016798,2]
[426599662,1782659439000,-781.08695527,0.00016798,2]
[426599696,1782659439000,-781.08695527,0.00016798,2]
[426599668,1782659439000,-781.08695527,0.00016798,2]
[426599675,1782659439000,-781.08695527,0.00016798,2]
[426599670,1782659439000,-781.08695527,0.00016798,2]
[426599681,1782659439000,-781.08695527,0.00016798,2]
[426599664,1782659439000,-781.08695527,0.00016798,2]
[426599677,1782659439000,-781.08695527,0.00016798,2]
[426599676,1782659439000,-781.08695527,0.00016798,2]
[426599672,1782659439000,-781.08695527,0.00016798,2]
[426599666,1782659439000,-781.08695527,0.00016798,2]
[426599683,1782659439000,-781.08695527,0.00016798,2]
[426599685,1782659439000,-781.08695527,0.00016798,2]
[426599679,1782659439000,-781.08695527,0.00016798,2]
[426599691,1782659439000,-781.08695527,0.00016798,2]
[426599689,1782659439000,-781.08695527,0.00016798,2]
[426599674,1782659439000,-781.08695527,0.00016798,2]
[426599749,1782659439000,-500.0,0.00016798,2]
[426599744,1782659439000,-500.0,0.00016798,2]
[426599751,1782659439000,-500.0,0.00016798,2]
[426599823,1782659439000,-763.23353914,0.00016798,2]
[426599825,1782659439000,-763.23353914,0.00016798,2]
[426599817,1782659439000,-763.23353914,0.00016798,2]
[426599819,1782659439000,-763.23353914,0.00016798,2]
[426599829,1782659439000,-763.23353914,0.00016798,2]
[426599839,1782659439000,-500.0,0.00016798,2]
[426599841,1782659439000,-500.0,0.00016798,2]
[426599833,1782659439000,-763.23353914,0.00016798,2]
[426599845,1782659439000,-500.0,0.00016798,2]
[426599843,1782659439000,-500.0,0.00016798,2]
[426599847,1782659439000,-259.41528308,0.00016798,2]
[426599831,1782659439000,-763.23353914,0.00016798,2]
[426599835,1782659439000,-763.23353914,0.00016798,2]
[426599821,1782659439000,-763.23353914,0.00016798,2]
[426599849,1782659439000,-189.0263195,0.00016798,2]
[426599853,1782659439000,-500.0,0.00016798,2]
[426599867,1782659439000,-500.0,0.00016798,2]
[426599857,1782659439000,-500.0,0.00016798,2]
[426599869,1782659439000,-500.0,0.00016798,2]
[426599862,1782659439000,-500.0,0.00016798,2]
[426599855,1782659439000,-500.0,0.00016798,2]
[426599873,1782659439000,-500.0,0.00016798,2]
[426599865,1782659439000,-500.0,0.00016798,2]
[426599864,1782659439000,-500.0,0.00016798,2]
[426599858,1782659439000,-500.0,0.00016798,2]
[426599871,1782659439000,-500.0,0.00016798,2]
[426599860,1782659439000,-500.0,0.00016798,2]
[426599753,1782659439000,-500.0,0.00016798,2]
[426599851,1782659439000,-500.0,0.00016798,2]
[426599827,1782659439000,-763.23353914,0.00016798,2]
[426599837,1782659439000,-763.23353914,0.00016798,2]
[426599808,1782659439000,-763.23353914,0.00016798,2]
[426599759,1782659439000,-500.0,0.00016798,2]
[426599806,1782659439000,-763.23353914,0.00016798,2]
[426599757,1782659439000,-500.0,0.00016798,2]
[426599760,1782659439000,-500.0,0.00016798,2]
[426599764,1782659439000,-500.0,0.00016798,2]
[426599762,1782659439000,-500.0,0.00016798,2]
[426599775,1782659439000,-763.23353914,0.00016798,2]
[426599766,1782659439000,-500.0,0.00016798,2]
[426599768,1782659439000,-500.0,0.00016798,2]
[426599770,1782659439000,-763.23353914,0.00016798,2]
[426599772,1782659439000,-500.0,0.00016798,2]
[426599773,1782659439000,-763.23353914,0.00016798,2]
[426599779,1782659439000,-763.23353914,0.00016798,2]
[426599781,1782659439000,-763.23353914,0.00016798,2]
[426599777,1782659439000,-499.99999999,0.00016798,2]
[426599785,1782659439000,-763.23353914,0.00016798,2]
[426599813,1782659439000,-763.23353914,0.00016798,2]
[426599783,1782659439000,-500.0,0.00016798,2]
[426599815,1782659439000,-763.23353914,0.00016798,2]
[426599809,1782659439000,-763.23353914,0.00016798,2]
[426599802,1782659439000,-763.23353914,0.00016798,2]
[426599794,1782659439000,-763.23353914,0.00016798,2]
[426599800,1782659439000,-763.23353914,0.00016798,2]
[426599811,1782659439000,-763.23353914,0.00016798,2]
[426599798,1782659439000,-763.23353914,0.00016798,2]
[426599804,1782659439000,-763.23353914,0.00016798,2]
[426599790,1782659439000,-763.23353914,0.00016798,2]
[426599792,1782659439000,-763.23353914,0.00016798,2]
[426599796,1782659439000,-763.23353914,0.00016798,2]
[426599978,1782659440000,-647.992677,0.00016799,2]
[426599977,1782659440000,-647.992677,0.00016799,2]
[426599975,1782659440000,-264.033586,0.00016799,2]
[426599973,1782659440000,-647.992677,0.00016799,2]
[426599963,1782659440000,-647.992677,0.00016799,2]
[426599959,1782659440000,-647.992677,0.00016799,2]
[426599957,1782659440000,-647.992677,0.00016799,2]
[426599954,1782659440000,-647.992677,0.00016799,2]
[426599944,1782659440000,-500.0,0.00016798,2]
[426599948,1782659440000,-500.0,0.00016798,2]
[426599951,1782659440000,-173.08338594,0.00016798,2]
[426599965,1782659440000,-647.992677,0.00016799,2]
[426599961,1782659440000,-647.992677,0.00016799,2]
[426599971,1782659440000,-647.992677,0.00016799,2]
[426600003,1782659440000,-500.0,0.0001762,2]
[426599967,1782659440000,-151.0,0.00016799,2]
[426599969,1782659440000,-647.992677,0.00016799,2]
[426599970,1782659440000,-151.0,0.00016799,2]
[426599980,1782659440000,-647.992677,0.00016799,2]
[426599982,1782659440000,-647.992677,0.00016799,2]
[426599984,1782659440000,-647.992677,0.00016799,2]
[426599995,1782659440000,-2120.4937427,0.000168,7]
[426599993,1782659440000,-647.992669,0.00016799,2]
[426599997,1782659440000,-500.0,0.00017072,2]
[426599999,1782659440000,-485.39412308,0.0001721,2]
[426599991,1782659440000,-647.992677,0.00016799,2]
[426599987,1782659440000,-647.992677,0.00016799,2]
[426599950,1782659440000,-500.0,0.00016798,2]
[426599972,1782659440000,-151.0,0.00016799,2]
[426599955,1782659440000,-647.992677,0.00016799,2]
[426599875,1782659440000,-500.0,0.00016798,2]
[426599946,1782659440000,-500.0,0.00016798,2]
[426599989,1782659440000,-647.992677,0.00016799,2]
[426599877,1782659440000,-500.0,0.00016798,2]
[426599879,1782659440000,-500.0,0.00016798,2]
[426599881,1782659440000,-500.0,0.00016798,2]
[426599885,1782659440000,-500.0,0.00016798,2]
[426599883,1782659440000,-500.0,0.00016798,2]
[426599889,1782659440000,-500.0,0.00016798,2]
[426599887,1782659440000,-500.0,0.00016798,2]
[426599897,1782659440000,-500.0,0.00016798,2]
[426599895,1782659440000,-500.0,0.00016798,2]
[426599893,1782659440000,-500.0,0.00016798,2]
[426599907,1782659440000,-500.0,0.00016798,2]
[426599900,1782659440000,-500.0,0.00016798,2]
[426599904,1782659440000,-500.0,0.00016798,2]
[426599910,1782659440000,-500.0,0.00016798,2]
[426599925,1782659440000,-763.23353913,0.00016798,2]
[426599927,1782659440000,-763.23353913,0.00016798,2]
[426599928,1782659440000,-500.0,0.00016798,2]
[426599917,1782659440000,-556.26766649,0.00016798,2]
[426599915,1782659440000,-500.0,0.00016798,2]
[426599919,1782659440000,-500.0,0.00016798,2]
[426599923,1782659440000,-763.23353913,0.00016798,2]
[426599930,1782659440000,-500.0,0.00016798,2]
[426599936,1782659440000,-500.0,0.00016798,2]
[426599913,1782659440000,-500.0,0.00016798,2]
[426599921,1782659440000,-763.23353913,0.00016798,2]
[426599933,1782659440000,-500.0,0.00016798,2]
[426599938,1782659440000,-450.0,0.00016798,2]
[426599940,1782659440000,-500.0,0.00016798,2]
[426599942,1782659440000,-500.0,0.00016798,2]
[426599986,1782659440000,-647.992677,0.00016799,2]
[426599891,1782659440000,-500.0,0.00016798,2]
[426600005,1782659440000,-498.52313765,0.00017729,2]
[426600085,1782659440000,-500.0,0.00020999,2]
[426600072,1782659440000,-500.0,0.00020998,2]
[426600074,1782659440000,-500.0,0.00020998,2]
[426600070,1782659440000,-934.12450159,0.00020981,2]
[426600081,1782659440000,-500.0,0.00020998,2]
[426600083,1782659440000,-500.0,0.00020998,2]
[426600068,1782659440000,-283960.67807636,0.00020899,2]
[426600077,1782659440000,-278.85476522,0.00020998,2]
[426600087,1782659440000,-500.0,0.00020999,2]
[426600098,1782659440000,-1000.0,0.00020999,2]
[426600101,1782659440000,-1000.0,0.00020999,2]
[426600089,1782659440000,-500.0,0.00020999,2]
[426600103,1782659440000,-1000.0,0.00020999,2]
[426600091,1782659440000,-500.0,0.00020999,2]
[426600105,1782659440000,-1000.0,0.00020999,2]
[426600095,1782659440000,-503.96522898,0.00020999,2]
[426600107,1782659440000,-1000.0,0.00020999,2]
[426600093,1782659440000,-500.0,0.00020999,2]
[426600109,1782659440000,-500.0,0.00020999,2]
[426600111,1782659440000,-500.0,0.00020999,2]
[426600113,1782659440000,-530.81711323,0.00020999,2]
[426600128,1782659440000,-1000.0,0.00021,2]
[426600116,1782659440000,-45365.75443327,0.00021,2]
[426600124,1782659440000,-1000.0,0.00021,2]
[426600118,1782659440000,-191.2891342,0.00021,2]
[426600120,1782659440000,-1000.0,0.00021,2]
[426600115,1782659440000,-12410.18599551,0.00021,2]
[426600122,1782659440000,-1000.0,0.00021,2]
[426600126,1782659440000,-1000.0,0.00021,2]
[426600079,1782659440000,-500.0,0.00020998,2]
[426600066,1782659440000,-483.94,0.00020889,3]
[426600001,1782659440000,-500.0,0.00017346,2]
[426600062,1782659440000,-296.08157909,0.00020853,2]
[426600007,1782659440000,-500.0,0.00017894,2]
[426600013,1782659440000,-500.0,0.00018442,2]
[426600016,1782659440000,-1797.25344033,0.00018616,2]
[426600009,1782659440000,-5369.3390943,0.0001806,2]
[426600018,1782659440000,-1350.2383443,0.0001863,2]
[426600015,1782659440000,-897.34164776,0.00018565,2]
[426600011,1782659440000,-500.0,0.00018168,2]
[426600020,1782659440000,-336.62144202,0.00018637,2]
[426600075,1782659440000,-500.0,0.00020998,2]
[426600030,1782659440000,-6363.48429896,0.0002,5]
[426600026,1782659440000,-246.9054631,0.00019678,2]
[426600028,1782659440000,-598.43811914,0.00019809,2]
[426600024,1782659440000,-1595.27404047,0.00019402,2]
[426600032,1782659440000,-1797.25344031,0.00020101,2]
[426600034,1782659440000,-2492.61568823,0.00020238,2]
[426600022,1782659440000,-376.89813808,0.00018716,2]
[426600042,1782659440000,-500.0,0.00020625,2]
[426600038,1782659440000,-300.0,0.000203,4]
[426600064,1782659440000,-161.31,0.00020889,3]
[426600060,1782659440000,-637.00922236,0.00020625,2]
[426600051,1782659440000,-500.0,0.00020625,2]
[426600054,1782659440000,-158.57079944,0.00020625,2]
[426600059,1782659440000,-500.0,0.00020625,2]
[426600057,1782659440000,-500.0,0.00020625,2]
[426600049,1782659440000,-500.0,0.00020625,2]
[426600045,1782659440000,-500.0,0.00020625,2]
[426600036,1782659440000,-25786.34244885,0.000203,2]
[426600040,1782659440000,-162.43022705,0.00020625,2]
[426600044,1782659440000,-151.5,0.00020625,2]
[426600055,1782659440000,-554.69256372,0.00020625,2]
[426600048,1782659440000,-500.0,0.00020625,2]
[426600186,1782659441000,-151.0,0.00021918,2]
[426600197,1782659441000,-151.0,0.00021918,2]
[426600192,1782659441000,-297.098541,0.00021918,2]
[426600195,1782659441000,-151.0,0.00021918,2]
[426600188,1782659441000,-151.0,0.00021918,2]
[426600189,1782659441000,-151.0,0.00021918,2]
[426600178,1782659441000,-520.07991,0.00021918,2]
[426600198,1782659441000,-151.0,0.00021918,2]
[426600191,1782659441000,-291.18973,0.00021918,2]
[426600184,1782659441000,-151.0,0.00021918,2]
[426600183,1782659441000,-151.0,0.00021918,2]
[426600180,1782659441000,-520.07991,0.00021918,2]
[426600194,1782659441000,-151.0,0.00021918,2]
[426600200,1782659441000,-151.0,0.00021918,2]
[426600234,1782659441000,-151.0,0.00021918,2]
[426600203,1782659441000,-151.0,0.00021918,2]
[426600205,1782659441000,-151.0,0.00021918,2]
[426600208,1782659441000,-151.0,0.00021918,2]
[426600202,1782659441000,-151.0,0.00021918,2]
[426600210,1782659441000,-151.0,0.00021918,2]
[426600211,1782659441000,-151.0,0.00021918,2]
[426600214,1782659441000,-151.0,0.00021918,2]
[426600219,1782659441000,-228.684885,0.00021918,2]
[426600216,1782659441000,-151.0,0.00021918,2]
[426600218,1782659441000,-151.0,0.00021918,2]
[426600213,1782659441000,-151.0,0.00021918,2]
[426600221,1782659441000,-151.0,0.00021918,2]
[426600233,1782659441000,-1104.984526,0.00021918,2]
[426600181,1782659441000,-520.079912,0.00021918,2]
[426600206,1782659441000,-151.0,0.00021918,2]
[426600175,1782659441000,-520.07991,0.00021918,2]
[426600157,1782659441000,-520.07991,0.00021918,2]
[426600171,1782659441000,-520.07991,0.00021918,2]
[426600236,1782659441000,-1104.984526,0.00021918,2]
[426600134,1782659441000,-1000.0,0.00021,2]
[426600135,1782659441000,-1000.0,0.00021,2]
[426600130,1782659441000,-1000.0,0.00021,2]
[426600136,1782659441000,-1000.0,0.00021,2]
[426600132,1782659441000,-1000.0,0.00021,2]
[426600139,1782659441000,-3589.36659106,0.00021075,2]
[426600141,1782659441000,-1797.25344031,0.00021586,2]
[426600138,1782659441000,-416.8328008,0.00021,2]
[426600144,1782659441000,-500.0,0.00021917,2]
[426600145,1782659441000,-500.0,0.00021917,2]
[426600142,1782659441000,-300.0,0.00021739,3]
[426600149,1782659441000,-163.049626,0.00021918,2]
[426600148,1782659441000,-500.0,0.00021917,2]
[426600154,1782659441000,-520.07991,0.00021918,2]
[426600146,1782659441000,-500.0,0.00021917,2]
[426600151,1782659441000,-151.230208,0.00021918,2]
[426600156,1782659441000,-520.07991,0.00021918,2]
[426600152,1782659441000,-520.07991,0.00021918,2]
[426600158,1782659441000,-520.07991,0.00021918,2]
[426600164,1782659441000,-520.07991,0.00021918,2]
[426600160,1782659441000,-520.07991,0.00021918,2]
[426600161,1782659441000,-520.07991,0.00021918,2]
[426600163,1782659441000,-520.07991,0.00021918,2]
[426600166,1782659441000,-520.07991,0.00021918,2]
[426600167,1782659441000,-520.07991,0.00021918,2]
[426600169,1782659441000,-520.07991,0.00021918,2]
[426600174,1782659441000,-520.07991,0.00021918,2]
[426600172,1782659441000,-520.07991,0.00021918,2]
[426600177,1782659441000,-520.07991,0.00021918,2]
[426600239,1782659441000,-1104.984526,0.00021918,2]
[426600225,1782659441000,-151.0,0.00021918,2]
[426600222,1782659441000,-151.0,0.00021918,2]
[426600286,1782659441000,-1920.0,0.00021918,2]
[426600291,1782659441000,-1920.0,0.00021918,2]
[426600293,1782659441000,-1920.0,0.00021918,2]
[426600296,1782659441000,-1920.0,0.00021918,2]
[426600298,1782659441000,-1920.0,0.00021918,2]
[426600299,1782659441000,-151.0,0.00021918,2]
[426600301,1782659441000,-151.0,0.00021918,2]
[426600302,1782659441000,-151.0,0.00021918,2]
[426600294,1782659441000,-1920.0,0.00021918,2]
[426600304,1782659441000,-177.962003,0.00021918,2]
[426600311,1782659441000,-151.0,0.00021918,2]
[426600307,1782659441000,-151.0,0.00021918,2]
[426600306,1782659441000,-151.0,0.00021918,2]
[426600312,1782659441000,-151.0,0.00021918,2]
[426600309,1782659441000,-151.0,0.00021918,2]
[426600314,1782659441000,-151.0,0.00021918,2]
[426600324,1782659441000,-151.0,0.000226,7]
[426600315,1782659441000,-151.0,0.00021918,2]
[426600317,1782659441000,-151.0,0.00021918,2]
[426600319,1782659441000,-177.891177,0.00021918,2]
[426600322,1782659441000,-322.62,0.00022259,3]
[426600326,1782659441000,-296.08157909,0.00022755,14]
[426600320,1782659441000,-151.0,0.000222,6]
[426600333,1782659441000,-3283.110363,0.00023698,2]
[426600330,1782659441000,-1797.25344031,0.00023071,2]
[426600238,1782659441000,-261.189443,0.00021918,2]
[426600328,1782659441000,-151.0,0.00023,7]
[426600335,1782659441000,-274.776,0.000239,5]
[426600337,1782659441000,-151.0,0.000239,8]
[426600283,1782659441000,-1920.0,0.00021918,2]
[426600288,1782659441000,-1920.0,0.00021918,2]
[426600331,1782659441000,-151.0,0.000235,9]
[426600284,1782659441000,-1920.0,0.00021918,2]
[426600289,1782659441000,-1920.0,0.00021918,2]
[426600224,1782659441000,-1104.984526,0.00021918,2]
[426600230,1782659441000,-1104.984526,0.00021918,2]
[426600227,1782659441000,-1104.984526,0.00021918,2]
[426600231,1782659441000,-151.0,0.00021918,2]
[426600243,1782659441000,-1104.984526,0.00021918,2]
[426600244,1782659441000,-1104.984526,0.00021918,2]
[426600246,1782659441000,-1104.984526,0.00021918,2]
[426600250,1782659441000,-1104.984526,0.00021918,2]
[426600253,1782659441000,-1104.984526,0.00021918,2]
[426600249,1782659441000,-1104.984526,0.00021918,2]
[426600247,1782659441000,-1104.984526,0.00021918,2]
[426600252,1782659441000,-1104.984526,0.00021918,2]
[426600255,1782659441000,-1104.984526,0.00021918,2]
[426600228,1782659441000,-151.0,0.00021918,2]
[426600257,1782659441000,-1104.984526,0.00021918,2]
[426600267,1782659441000,-1920.0,0.00021918,2]
[426600258,1782659441000,-1104.984526,0.00021918,2]
[426600281,1782659441000,-1920.0,0.00021918,2]
[426600265,1782659441000,-1920.0,0.00021918,2]
[426600264,1782659441000,-1104.98451981,0.00021918,2]
[426600260,1782659441000,-1104.984526,0.00021918,2]
[426600269,1782659441000,-1920.0,0.00021918,2]
[426600279,1782659441000,-1920.0,0.00021918,2]
[426600276,1782659441000,-1920.0,0.00021918,2]
[426600262,1782659441000,-1104.984526,0.00021918,2]
[426600272,1782659441000,-1920.0,0.00021918,2]
[426600271,1782659441000,-1920.0,0.00021918,2]
[426600274,1782659441000,-1920.0,0.00021918,2]
[426600277,1782659441000,-1920.0,0.00021918,2]
[426600411,1782659442000,-576.9,0.00024657,2]
[426600407,1782659442000,-500.0,0.00024657,2]
[426600416,1782659442000,-561.92,0.00024657,2]
[426600414,1782659442000,-500.0,0.00024657,2]
[426600400,1782659442000,-1000.0,0.00024656,2]
[426600413,1782659442000,-500.0,0.00024657,2]
[426600398,1782659442000,-1000.0,0.00024656,2]
[426600409,1782659442000,-501.37,0.00024657,2]
[426600402,1782659442000,-1000.0,0.00024656,2]
[426600391,1782659442000,-500.0,0.00024656,2]
[426600404,1782659442000,-1000.0,0.00024656,2]
[426600395,1782659442000,-367.2141371,0.00024656,2]
[426600425,1782659442000,-500.0,0.00024657,2]
[426600418,1782659442000,-693.29,0.00024657,2]
[426600420,1782659442000,-500.0,0.00024657,2]
[426600421,1782659442000,-500.0,0.00024657,2]
[426600423,1782659442000,-500.0,0.00024657,2]
[426600427,1782659442000,-500.0,0.00024657,2]
[426600429,1782659442000,-323.08036173,0.00024657,2]
[426600448,1782659442000,-500.0,0.00024657,2]
[426600451,1782659442000,-500.0,0.00024657,2]
[426600455,1782659442000,-4486.83,0.00024657,2]
[426600453,1782659442000,-500.0,0.00024657,2]
[426600450,1782659442000,-500.0,0.00024657,2]
[426600396,1782659442000,-489.55,0.00024656,2]
[426600405,1782659442000,-1000.0,0.00024656,2]
[426600393,1782659442000,-500.0,0.00024656,2]
[426600370,1782659442000,-500.0,0.00024649,2]
[426600389,1782659442000,-500.0,0.00024656,2]
[426600444,1782659442000,-500.0,0.00024657,2]
[426600339,1782659442000,-5932.1537979,0.00024273,2]
[426600348,1782659442000,-645.23,0.0002464,3]
[426600342,1782659442000,-2000.0,0.00024534,7]
[426600341,1782659442000,-151.0,0.000243,5]
[426600344,1782659442000,-1797.25344031,0.00024556,2]
[426600346,1782659442000,-1290.46,0.0002464,3]
[426600350,1782659442000,-322.62,0.0002464,3]
[426600352,1782659442000,-487.0,0.0002464,2]
[426600359,1782659442000,-487.0,0.0002464,2]
[426600362,1782659442000,-5161.85,0.00024647,3]
[426600366,1782659442000,-151.0,0.00024647,2]
[426600384,1782659442000,-500.0,0.00024656,2]
[426600364,1782659442000,-2580.92,0.00024647,3]
[426600354,1782659442000,-487.0,0.0002464,2]
[426600357,1782659442000,-487.0,0.0002464,2]
[426600373,1782659442000,-18756.81909433,0.0002465,2]
[426600355,1782659442000,-487.0,0.0002464,2]
[426600371,1782659442000,-1000.0,0.00024649,2]
[426600378,1782659442000,-500.0,0.00024655,2]
[426600377,1782659442000,-500.0,0.00024654,2]
[426600380,1782659442000,-500.0,0.00024656,2]
[426600385,1782659442000,-500.0,0.00024656,2]
[426600375,1782659442000,-151.0,0.0002465,2]
[426600382,1782659442000,-500.0,0.00024656,2]
[426600387,1782659442000,-500.0,0.00024656,2]
[426600368,1782659442000,-500.0,0.00024649,2]
[426600446,1782659442000,-960.38,0.00024657,2]
[426600361,1782659442000,-707.66,0.0002464,2]
[426600457,1782659442000,-500.0,0.00024657,2]
[426600522,1782659442000,-500.0,0.00024657,2]
[426600511,1782659442000,-584.84968298,0.00024657,2]
[426600515,1782659442000,-1333.44,0.00024657,2]
[426600513,1782659442000,-503.28011603,0.00024657,2]
[426600524,1782659442000,-1000.0,0.00024657,2]
[426600528,1782659442000,-562.38366258,0.00024657,2]
[426600526,1782659442000,-509.88485374,0.00024657,2]
[426600529,1782659442000,-228.718923,0.00024657,2]
[426600531,1782659442000,-501.33269602,0.00024657,2]
[426600533,1782659442000,-514.57258728,0.00024657,2]
[426600535,1782659442000,-894.61,0.00024657,2]
[426600541,1782659442000,-500.0,0.00024657,2]
[426600521,1782659442000,-552.26300235,0.00024657,2]
[426600537,1782659442000,-520.85372705,0.00024657,2]
[426600546,1782659442000,-547.19270767,0.00024657,2]
[426600545,1782659442000,-555.94056844,0.00024657,2]
[426600548,1782659442000,-510.55992466,0.00024657,2]
[426600554,1782659442000,-500.0,0.00024657,2]
[426600551,1782659442000,-528.9516505,0.00024657,2]
[426600557,1782659442000,-545.24073271,0.00024657,2]
[426600561,1782659442000,-500.0,0.00024657,2]
[426600567,1782659442000,-604.65,0.00024657,2]
[426600565,1782659442000,-525.26503416,0.00024657,2]
[426600570,1782659442000,-526.99793178,0.00024657,2]
[426600568,1782659442000,-566.89290902,0.00024657,2]
[426600442,1782659442000,-176.91963827,0.00024657,2]
[426600543,1782659442000,-500.0,0.00024657,2]
[426600519,1782659442000,-672.28,0.00024657,2]
[426600539,1782659442000,-508.93623445,0.00024657,2]
[426600517,1782659442000,-530.27856813,0.00024657,2]
[426600464,1782659442000,-193.00241412,0.00024657,2]
[426600509,1782659442000,-500.0,0.00024657,2]
[426600459,1782659442000,-515.89166636,0.00024657,2]
[426600462,1782659442000,-521.80723764,0.00024657,2]
[426600461,1782659442000,-500.9140067,0.00024657,2]
[426600466,1782659442000,-527.44899376,0.00024657,2]
[426600468,1782659442000,-540.20963087,0.00024657,2]
[426600477,1782659442000,-500.0,0.00024657,2]
[426600472,1782659442000,-500.0,0.00024657,2]
[426600480,1782659442000,-500.0,0.00024657,2]
[426600479,1782659442000,-519.55397775,0.00024657,2]
[426600475,1782659442000,-509.15473498,0.00024657,2]
[426600473,1782659442000,-515.16746485,0.00024657,2]
[426600470,1782659442000,-500.0,0.00024657,2]
[426600500,1782659442000,-530.94710157,0.00024657,2]
[426600507,1782659442000,-533.84576361,0.00024657,2]
[426600482,1782659442000,-525.12067205,0.00024657,2]
[426600496,1782659442000,-500.0,0.00024657,2]
[426600498,1782659442000,-500.00919676,0.00024657,2]
[426600505,1782659442000,-500.0,0.00024657,2]
[426600492,1782659442000,-531.30173404,0.00024657,2]
[426600494,1782659442000,-516.39156658,0.00024657,2]
[426600502,1782659442000,-526.08764277,0.00024657,2]
[426600490,1782659442000,-540.90277035,0.00024657,2]
[426600484,1782659442000,-507.69047328,0.00024657,2]
[426600486,1782659442000,-510.34402958,0.00024657,2]
[426600488,1782659442000,-438.82452147,0.00024657,2]
[426600644,1782659443000,-500.0,0.00024657,2]
[426600648,1782659443000,-583.71598788,0.00024657,2]
[426600649,1782659443000,-500.0,0.00024657,2]
[426600645,1782659443000,-1230.16,0.00024657,2]
[426600642,1782659443000,-500.0,0.00024657,2]
[426600632,1782659443000,-500.0,0.00024657,2]
[426600657,1782659443000,-1611.47,0.00024657,2]
[426600651,1782659443000,-556.85138675,0.00024657,2]
[426600636,1782659443000,-500.0,0.00024657,2]
[426600634,1782659443000,-574.52613725,0.00024657,2]
[426600638,1782659443000,-518.24748846,0.00024657,2]
[426600646,1782659443000,-529.03905721,0.00024657,2]
[426600640,1782659443000,-522.56761666,0.00024657,2]
[426600659,1782659443000,-516.25844401,0.00024657,2]
[426600698,1782659443000,-553.56913718,0.00024657,2]
[426600661,1782659443000,-500.0,0.00024657,2]
[426600665,1782659443000,-500.0,0.00024657,2]
[426600669,1782659443000,-547.04885656,0.00024657,2]
[426600678,1782659443000,-500.0,0.00024657,2]
[426600675,1782659443000,-522.02936261,0.00024657,2]
[426600674,1782659443000,-537.21761076,0.00024657,2]
[426600667,1782659443000,-500.0,0.00024657,2]
[426600680,1782659443000,-511.41543467,0.00024657,2]
[426600682,1782659443000,-509.63349091,0.00024657,2]
[426600672,1782659443000,-468.04034389,0.00024657,2]
[426600684,1782659443000,-152.5769777,0.00024657,2]
[426600700,1782659443000,-500.0,0.00024657,2]
[426600623,1782659443000,-513.68413955,0.00024657,2]
[426600663,1782659443000,-514.50409608,0.00024657,2]
[426600629,1782659443000,-500.0,0.00024657,2]
[426600580,1782659443000,-505.01118192,0.00024657,2]
[426600627,1782659443000,-500.0,0.00024657,2]
[426600572,1782659443000,-504.59598789,0.00024657,2]
[426600578,1782659443000,-500.0,0.00024657,2]
[426600686,1782659443000,-214.62423697,0.00024657,2]
[426600584,1782659443000,-500.0,0.00024657,2]
[426600585,1782659443000,-500.0,0.00024657,2]